bitfinex/quotes_BTCUSD_20241001
["timestamp","ask_amount","ask_price","bid_price","bid_amount"]
[1727797131459,0.32730413,62732.0,62727.0,0.23945404]
[1727797131696,0.32730413,62732.0,62718.0,0.24917595]
[1727797131697,0.1856,62731.0,62718.0,0.24917595]
[1727797131946,0.32730413,62726.0,62718.0,0.24917595]
[1727797132408,0.32730413,62726.0,62725.0,0.159426]
[1727797132876,0.32730413,62726.0,62721.0,0.318871]
[1727797133127,0.51290413,62731.0,62724.0,0.478284]
[1727797133377,0.51290413,62731.0,62704.0,0.032]
[1727797133378,0.39887804,62726.0,62704.0,0.032]
[1727797133602,0.32730413,62715.0,62714.0,0.39890804]
[1727797133822,0.002,62726.0,62717.0,0.318891]
[1727797134047,0.002,62726.0,62725.0,0.159426]
[1727797134487,0.002,62726.0,62724.0,0.318856]
[1727797134488,0.159418,62729.0,62722.0,0.318866]
[1727797134736,0.32248962,62730.0,62722.0,0.318862]
[1727797134737,0.32730413,62727.0,62722.0,0.318862]
[1727797134963,0.32730413,62727.0,62724.0,0.159427]
[1727797135189,0.32730413,62727.0,62722.0,0.318862]
[1727797135412,0.32730413,62727.0,62716.0,0.318897]
[1727797135413,0.39453594,62727.0,62723.0,0.159429]
[1727797135625,0.001,62726.0,62725.0,0.159426]
[1727797136360,0.32730413,62727.0,62722.0,0.318862]
[1727797136577,0.32730413,62727.0,62719.0,0.318879]
[1727797136578,0.32830413,62727.0,62726.0,0.159423]
[1727797137273,0.001,62727.0,62726.0,0.159423]
[1727797138193,0.1856,62731.0,62730.0,0.159413]
[1727797139623,0.318844,62727.0,62717.0,0.23945404]
[1727797139839,0.3420578,62731.0,62717.0,0.23945404]
[1727797139840,0.32730413,62720.0,62717.0,0.23945404]
[1727797140073,0.32730413,62726.0,62722.0,0.159431]
[1727797140295,0.31595404,62729.0,62717.0,0.23945404]
[1727797140555,0.11476712,62728.0,62711.0,0.23945404]
[1727797140761,0.32730413,62726.0,62725.0,0.159426]
[1727797141206,0.32730413,62726.0,62716.0,0.318896]
[1727797141428,0.32730413,62726.0,62725.0,0.159426]
[1727797141902,0.32730413,62726.0,62724.0,0.318857]
[1727797141903,0.0765,62729.0,62724.0,0.318857]
[1727797142122,0.51290413,62731.0,62730.0,0.159413]
[1727797142123,0.1856,62731.0,62730.0,0.159413]
[1727797142773,0.97862637,62741.0,62740.0,0.159387]
[1727797143676,0.97862637,62741.0,62740.0,0.3158448]
[1727797144579,0.97862637,62741.0,62740.0,0.159387]
[1727797144798,0.97862637,62741.0,62728.0,0.00968977]
[1727797145096,0.97862637,62741.0,62725.0,0.005]
[1727797145097,0.97862637,62741.0,62737.0,0.159395]
[1727797145313,0.97862637,62741.0,62737.0,0.1564578]
[1727797145775,0.97862637,62741.0,62738.0,0.23945404]
[1727797145989,0.97862637,62741.0,62740.0,0.159387]
[1727797145990,0.98062637,62741.0,62740.0,0.159387]
[1727797146242,0.98062637,62741.0,62740.0,0.3158448]
[1727797146448,0.97862637,62741.0,62740.0,0.3158448]
[1727797147174,0.97862637,62741.0,62740.0,0.159387]
[1727797148100,0.9716695,62741.0,62740.0,0.159387]
[1727797148308,0.99664967,62741.0,62740.0,0.159387]
[1727797148739,0.9736695,62741.0,62740.0,0.159387]
[1727797148988,0.9736695,62741.0,62739.0,0.159389]
[1727797149214,0.32730413,62740.0,62732.0,0.318815]
[1727797149437,0.48669213,62740.0,62735.0,0.159399]
[1727797149691,0.9736695,62741.0,62740.0,0.159387]
[1727797149920,0.9736695,62741.0,62740.0,0.3158448]
[1727797150148,0.9736695,62741.0,62733.0,0.318806]
[1727797150149,0.9716695,62741.0,62739.0,0.159389]
[1727797150361,0.9716695,62741.0,62740.0,0.159387]
[1727797150587,0.002,62740.0,62739.0,0.15939]
[1727797151322,0.002,62740.0,62726.0,0.24445404]
[1727797151323,0.32930413,62740.0,62733.0,0.318811]
[1727797151804,0.32930413,62740.0,62730.0,0.318826]
[1727797151805,0.1858,62739.0,62730.0,0.318826]
[1727797151806,0.1858,62739.0,62734.0,0.23945404]
[1727797152050,0.1858,62739.0,62738.0,0.159393]
[1727797152298,0.1858,62739.0,62735.0,0.3188]
[1727797152299,0.9716695,62741.0,62740.0,0.159387]
[1727797152801,0.9736695,62741.0,62740.0,0.3158448]
[1727797153064,0.9736695,62741.0,62740.0,0.32553292]
[1727797153308,0.9716695,62741.0,62740.0,0.32553292]
[1727797153547,0.9716695,62741.0,62740.0,0.46453292]
[1727797154044,0.9716695,62741.0,62740.0,1.18906792]
[1727797154292,0.9716695,62741.0,62740.0,0.80572392]
[1727797154790,0.96941542,62741.0,62740.0,0.80572392]
[1727797155290,0.96941542,62741.0,62740.0,0.90174392]
[1727797155529,0.96941542,62741.0,62740.0,0.90874392]
[1727797155773,0.97041542,62741.0,62740.0,0.92274392]
[1727797156258,0.97141542,62741.0,62740.0,0.93674392]
[1727797156487,0.97141542,62741.0,62740.0,0.49053292]
[1727797156714,0.97141542,62741.0,62740.0,0.49253292]
[1727797156982,0.97141542,62741.0,62740.0,0.49053292]
[1727797157482,0.97141542,62741.0,62740.0,0.48553292]
[1727797157981,0.97141542,62741.0,62740.0,0.49953292]
[1727797158450,0.97141542,62741.0,62740.0,0.36753292]
[1727797159700,0.96941542,62741.0,62740.0,0.33953292]
[1727797159955,0.96941542,62741.0,62740.0,0.16907512]
[1727797160187,0.96941542,62741.0,62740.0,0.33253292]
[1727797160908,0.96941542,62741.0,62740.0,0.32553292]
[1727797161152,0.97041542,62741.0,62740.0,0.33553292]
[1727797161396,0.96941542,62741.0,62740.0,0.163387]
[1727797161853,0.97041542,62741.0,62740.0,0.165387]
[1727797162320,0.97041542,62741.0,62740.0,0.3218448]
[1727797162576,0.97041542,62741.0,62740.0,0.167029]
[1727797162817,0.96941542,62741.0,62740.0,0.308814]
[1727797163071,1.58514329,62741.0,62740.0,0.149427]
[1727797163313,1.74452829,62741.0,62740.0,0.149427]
[1727797163559,1.74452829,62741.0,62740.0,0.156427]
[1727797164038,1.82162829,62741.0,62740.0,0.156427]
[1727797164273,1.82162829,62741.0,62740.0,0.149427]
[1727797164508,1.82462829,62741.0,62740.0,0.149427]
[1727797164973,1.82262829,62741.0,62740.0,0.149427]
[1727797165201,1.72450455,62741.0,62740.0,0.149427]
[1727797165439,1.72750455,62741.0,62740.0,0.150427]
[1727797165924,1.74050455,62741.0,62740.0,0.151427]
[1727797166169,1.88395133,62741.0,62740.0,0.150427]
[1727797166408,2.05240913,62741.0,62740.0,0.151427]
[1727797166903,1.73950455,62741.0,62740.0,0.151427]
[1727797167129,1.25281542,62741.0,62740.0,0.151427]
[1727797167837,1.25281542,62741.0,62740.0,0.310814]
[1727797168058,1.17571542,62741.0,62740.0,0.310814]
[1727797168994,1.50301955,62741.0,62740.0,0.151427]
[1727797169443,1.50301955,62741.0,62740.0,0.310814]
[1727797169699,1.17571542,62741.0,62740.0,0.310814]
[1727797170424,0.98441542,62741.0,62740.0,0.4672718]
[1727797170667,0.98141542,62741.0,62740.0,0.4662718]
[1727797170948,0.98141542,62741.0,62740.0,0.47629151]
[1727797170949,1.28141542,62741.0,62740.0,0.47629151]
[1727797171189,1.26441542,62741.0,62740.0,0.47629151]
[1727797171893,1.26441542,62741.0,62740.0,0.47529151]
[1727797172362,1.26541542,62741.0,62740.0,0.48529151]
[1727797172590,1.26441542,62741.0,62740.0,0.47529151]
[1727797173080,1.26441542,62741.0,62740.0,0.51229151]
[1727797173320,1.26441542,62741.0,62740.0,0.51829151]
[1727797173583,1.26441542,62741.0,62740.0,0.48629151]
[1727797173839,1.25941542,62741.0,62740.0,0.48029151]
[1727797174096,1.25941542,62741.0,62740.0,0.61729151]
[1727797174332,1.25941542,62741.0,62740.0,0.62829151]
[1727797174563,1.25941542,62741.0,62740.0,0.60729151]
[1727797175062,1.25941542,62741.0,62740.0,0.62429151]
[1727797175275,1.25941542,62741.0,62740.0,0.63429151]
[1727797175276,1.26041542,62741.0,62740.0,0.63429151]
[1727797175520,1.25941542,62741.0,62740.0,0.62429151]
[1727797175752,1.26041542,62741.0,62740.0,2.68264251]
[1727797175986,1.25941542,62741.0,62740.0,1.39080951]
[1727797176434,1.26041542,62741.0,62740.0,1.40380951]
[1727797176889,1.26041542,62741.0,62740.0,1.39180951]
[1727797177383,1.26041542,62741.0,62740.0,1.40780951]
[1727797177597,1.26041542,62741.0,62740.0,1.40580951]
[1727797177810,1.26041542,62741.0,62740.0,1.39180951]
[1727797178258,1.26041542,62741.0,62740.0,0.82134751]
[1727797179417,1.26041542,62741.0,62740.0,0.82334751]
[1727797179661,1.26041542,62741.0,62740.0,1.23455651]
[1727797179900,1.26041542,62741.0,62740.0,0.63929151]
[1727797180145,1.26041542,62741.0,62740.0,1.23255651]
[1727797180365,1.26041542,62741.0,62740.0,0.86824751]
[1727797180598,1.26041542,62741.0,62740.0,0.87024751]
[1727797182299,1.26041542,62741.0,62740.0,0.86824751]
[1727797182824,1.26041542,62741.0,62740.0,0.87024751]
[1727797183050,1.26041542,62741.0,62740.0,0.73124751]
[1727797183300,1.26041542,62741.0,62740.0,0.50229151]
[1727797184034,1.26041542,62741.0,62740.0,0.48829151]
[1727797184518,1.26041542,62741.0,62740.0,0.59429151]
[1727797184733,1.25941542,62741.0,62740.0,0.58129151]
[1727797184968,1.25941542,62741.0,62740.0,0.57529151]
[1727797185196,1.26041542,62741.0,62740.0,0.58829151]
[1727797185419,1.25941542,62741.0,62740.0,0.58229151]
[1727797185699,1.26041542,62741.0,62740.0,0.33783371]
[1727797185923,1.26041542,62741.0,62740.0,0.327814]
[1727797186636,1.25941542,62741.0,62740.0,0.315814]
[1727797186859,1.26041542,62741.0,62740.0,0.314814]
[1727797187111,1.26041542,62741.0,62740.0,0.326814]
[1727797187815,1.26041542,62741.0,62740.0,0.314814]
[1727797187816,1.28539518,62741.0,62740.0,0.314814]
[1727797188042,1.28539518,62741.0,62740.0,0.321814]
[1727797188273,1.46969518,62741.0,62740.0,0.321814]
[1727797188526,1.5983169,62741.0,62740.0,0.321814]
[1727797188757,1.44471542,62741.0,62740.0,0.321814]
[1727797189019,1.44471542,62741.0,62740.0,0.162427]
[1727797189235,1.44471542,62741.0,62740.0,0.156427]
[1727797189236,1.44371542,62741.0,62740.0,0.156427]
[1727797189474,1.77301955,62741.0,62740.0,0.156427]
[1727797189916,2.08885133,62741.0,62740.0,0.156427]
[1727797190204,2.08685133,62741.0,62740.0,0.156427]
[1727797190425,1.93040455,62741.0,62740.0,0.149427]
[1727797190643,1.93440455,62741.0,62740.0,0.149427]
[1727797191121,1.44371542,62741.0,62740.0,0.149427]
[1727797191335,1.44871542,62741.0,62740.0,0.309814]
[1727797191572,1.45371542,62741.0,62740.0,0.150427]
[1727797191820,1.44871542,62741.0,62740.0,0.150427]
[1727797192042,1.44371542,62741.0,62740.0,0.149427]
[1727797192271,1.45971542,62741.0,62740.0,0.151427]
[1727797192487,1.63653561,62741.0,62740.0,0.151427]
[1727797192734,1.61910042,62741.0,62740.0,0.151427]
[1727797192983,1.44971542,62741.0,62740.0,0.150427]
[1727797193207,1.60910042,62741.0,62740.0,0.150427]
[1727797193649,1.7655472,62741.0,62740.0,0.150427]
[1727797193903,1.7655472,62741.0,62728.0,0.23945404]
[1727797193904,0.32730413,62736.0,62728.0,0.23945404]
[1727797194137,0.342017,62729.0,62728.0,0.23945404]
[1727797194363,0.420717,62729.0,62728.0,0.23945404]
[1727797194592,0.420717,62729.0,62719.0,0.320524]
[1727797194593,0.39986481,62729.0,62719.0,0.320524]
[1727797194864,0.32730413,62726.0,62719.0,0.320524]
[1727797195120,0.32730413,62726.0,62719.0,0.001642]
[1727797195563,0.32730413,62726.0,62721.0,0.159434]
[1727797195801,0.48672813,62726.0,62721.0,0.159434]
[1727797196075,0.48672813,62726.0,62719.0,0.002642]
[1727797196076,0.45905096,62725.0,62719.0,0.002642]
[1727797196333,0.32730413,62721.0,62719.0,0.002642]
[1727797196796,0.32730413,62721.0,62719.0,0.001642]
[1727797197291,0.32730413,62721.0,62719.0,0.161082]
[1727797197509,0.02498852,62724.0,62721.0,0.318871]
[1727797197743,0.02498852,62724.0,62723.0,0.159431]
[1727797198667,0.2613,62729.0,62722.0,0.318866]
[1727797198941,0.3432566,62729.0,62724.0,0.318856]
[1727797199200,0.3432566,62729.0,62726.0,0.159422]
[1727797199441,0.3432566,62729.0,62722.0,0.318864]
[1727797199685,0.3432566,62729.0,62719.0,0.001642]
[1727797199686,0.1826,62729.0,62726.0,0.318846]
[1727797199910,0.1826,62729.0,62728.0,0.159418]
[1727797200368,0.012,62729.0,62728.0,0.159418]
[1727797200602,0.23945404,62740.0,62726.0,0.318846]
[1727797200852,0.23945404,62740.0,62727.0,0.1564578]
[1727797201096,0.23945404,62740.0,62734.0,0.318803]
[1727797201368,0.23945404,62740.0,62727.0,0.1564578]
[1727797201613,1.45671542,62741.0,62732.0,0.318814]
[1727797201873,0.23945404,62740.0,62732.0,0.318814]
[1727797202131,0.35228711,62737.0,62732.0,0.159407]
[1727797202395,0.35228711,62737.0,62733.0,0.159404]
[1727797202396,0.48670013,62737.0,62733.0,0.159404]
[1727797202640,0.32730413,62737.0,62733.0,0.55826104]
[1727797202868,0.32730413,62737.0,62733.0,0.159405]
[1727797203141,1.45671542,62741.0,62735.0,0.23945404]
[1727797203389,1.47071542,62741.0,62740.0,0.159387]
[1727797203885,1.25941542,62741.0,62740.0,0.3158448]
[1727797204393,1.25941542,62741.0,62740.0,0.32581274]
[1727797204630,1.25941542,62741.0,62740.0,0.42581274]
[1727797205854,1.27141542,62741.0,62740.0,0.43381274]
[1727797206097,1.27141542,62741.0,62740.0,0.43681274]
[1727797206341,1.25941542,62741.0,62740.0,0.43581274]
[1727797206580,1.25941542,62741.0,62740.0,1.51612574]
[1727797206825,1.25941542,62741.0,62740.0,1.51712574]
[1727797207058,1.26041542,62741.0,62740.0,1.53012574]
[1727797207768,1.26041542,62741.0,62740.0,0.44481274]
[1727797208527,1.26041542,62741.0,62740.0,0.44981274]
[1727797208528,1.26141542,62741.0,62740.0,0.44981274]
[1727797209933,1.26141542,62741.0,62740.0,0.34981274]
[1727797210164,1.26141542,62741.0,62740.0,0.33581274]
[1727797210165,1.26041542,62741.0,62740.0,0.33581274]
[1727797210383,1.25941542,62741.0,62740.0,0.32581274]
[1727797210633,1.25941542,62741.0,62740.0,0.159387]
[1727797211078,1.38543916,62741.0,62740.0,0.001642]
[1727797211770,1.74442416,62741.0,62740.0,0.010642]
[1727797212058,1.82652416,62741.0,62740.0,0.010642]
[1727797212542,1.82752416,62741.0,62740.0,0.018642]
[1727797212782,0.159407,62733.0,62726.0,0.318846]
[1727797213005,0.32730413,62731.0,62728.0,0.159417]
[1727797213235,0.005,62739.0,62727.0,0.55829504]
[1727797213477,0.32730413,62734.0,62728.0,0.318833]
[1727797213701,0.159409,62732.0,62727.0,0.23945404]
[1727797213928,0.64611313,62734.0,62724.0,0.318853]
[1727797213929,0.318815,62733.0,62724.0,0.318853]
[1727797214152,0.64613613,62729.0,62720.0,0.23945404]
[1727797214396,0.159423,62727.0,62720.0,0.23945404]
[1727797214642,0.159423,62727.0,62722.0,0.159433]
[1727797214889,0.195,62733.0,62727.0,0.001]
[1727797215131,0.23945404,62732.0,62727.0,0.001]
[1727797215367,0.23945404,62732.0,62727.0,0.16042]
[1727797215590,0.52230413,62733.0,62727.0,0.001]
[1727797215853,0.159417,62729.0,62727.0,0.001]
[1727797216093,0.318824,62731.0,62727.0,0.001]
[1727797216094,0.159414,62730.0,62727.0,0.001]
[1727797216353,0.009,62733.0,62732.0,0.159408]
[1727797217322,0.009,62733.0,62732.0,0.55531984]
[1727797217582,0.009,62733.0,62732.0,0.4259455]
[1727797217808,1.25941542,62741.0,62740.0,0.159387]
[1727797218759,1.25941542,62741.0,62740.0,0.3158448]
[1727797219256,1.38543916,62741.0,62740.0,0.159387]
[1727797219478,1.25941542,62741.0,62740.0,0.159387]
[1727797221074,1.27541542,62741.0,62740.0,0.160387]
[1727797222450,1.38534996,62741.0,62740.0,0.160387]
[1727797222679,1.27541542,62741.0,62740.0,0.160387]
[1727797223181,1.27541542,62741.0,62740.0,0.159387]
[1727797223182,1.26541542,62741.0,62740.0,0.159387]
[1727797223688,1.26841542,62741.0,62740.0,0.4158448]
[1727797224167,1.26841542,62741.0,62740.0,0.4256148]
[1727797224401,1.26841542,62741.0,62740.0,0.3256148]
[1727797224884,1.25941542,62741.0,62740.0,0.3256148]
[1727797225122,1.25941542,62741.0,62740.0,0.3306148]
[1727797225342,1.25941542,62741.0,62740.0,0.3326148]
[1727797226457,1.25941542,62741.0,62740.0,0.166387]
[1727797226458,1.38543916,62741.0,62740.0,0.166387]
[1727797226934,1.38543916,62741.0,62740.0,0.3228448]
[1727797226935,1.25941542,62741.0,62740.0,0.3228448]
[1727797227128,1.25941542,62741.0,62740.0,0.166387]
[1727797227343,1.25941542,62741.0,62740.0,0.161387]
[1727797227568,1.25941542,62741.0,62740.0,0.159387]
[1727797228040,1.26241542,62741.0,62740.0,0.159387]
[1727797228290,1.28439541,62741.0,62740.0,0.159387]
[1727797228545,1.28839541,62741.0,62740.0,0.159387]
[1727797228989,1.39233716,62741.0,62740.0,0.159387]
[1727797229212,1.38833716,62741.0,62740.0,0.159387]
[1727797229645,1.25941542,62741.0,62740.0,0.159387]
[1727797230087,1.26041542,62741.0,62740.0,0.159387]
[1727797230544,1.25941542,62741.0,62740.0,0.159387]
[1727797230783,1.25941542,62741.0,62740.0,0.160387]
[1727797230784,1.27341542,62741.0,62740.0,0.160387]
[1727797231034,1.25941542,62741.0,62740.0,0.160387]
[1727797231263,1.25941542,62741.0,62740.0,0.159387]
[1727797231481,1.25941542,62741.0,62740.0,0.160387]
[1727797231703,1.27201314,62741.0,62740.0,0.3168448]
[1727797232189,1.11262814,62741.0,62740.0,0.5328448]
[1727797232403,1.11262814,62741.0,62740.0,2.81589285]
[1727797232632,1.11462814,62741.0,62740.0,3.14801685]
[1727797232879,0.98712014,62741.0,62740.0,3.14801685]
[1727797233111,0.98712014,62741.0,62740.0,0.55458685]
[1727797233356,0.98712014,62741.0,62740.0,0.54458685]
[1727797233575,0.98712014,62741.0,62740.0,0.55158685]
[1727797233794,0.98512014,62741.0,62740.0,0.55258685]
[1727797234251,0.98712014,62741.0,62740.0,0.55258685]
[1727797234470,0.98512014,62741.0,62740.0,0.55158685]
[1727797234723,0.98612014,62741.0,62740.0,0.56558685]
[1727797234922,0.98712014,62741.0,62740.0,0.56958685]
[1727797235171,0.98512014,62741.0,62740.0,0.55158685]
[1727797235632,0.98612014,62741.0,62740.0,0.55658685]
[1727797235880,0.98612014,62741.0,62740.0,0.55158685]
[1727797235881,0.98512014,62741.0,62740.0,0.55158685]
[1727797236096,0.98512014,62741.0,62740.0,0.53958685]
[1727797236315,0.98512014,62741.0,62740.0,0.53458685]
[1727797236530,0.98612014,62741.0,62740.0,0.54858685]
[1727797237193,0.98512014,62741.0,62740.0,0.42558685]
[1727797237451,0.98712014,62741.0,62740.0,0.34358685]
[1727797237709,0.98712014,62741.0,62740.0,0.177387]
[1727797237924,0.98512014,62741.0,62740.0,0.159387]
[1727797238184,1.01109881,62741.0,62740.0,0.163387]
[1727797238416,1.01109881,62741.0,62740.0,0.3288448]
[1727797238634,0.98218743,62741.0,62740.0,0.3288448]
[1727797238885,0.98518743,62741.0,62740.0,0.3288448]
[1727797239346,0.99818743,62741.0,62740.0,0.3385631]
[1727797240279,0.99818743,62741.0,62740.0,0.1691053]
[1727797240280,0.99718743,62741.0,62740.0,0.1691053]
[1727797240498,1.00718743,62741.0,62740.0,0.160387]
[1727797241153,0.99718743,62741.0,62740.0,0.159387]
[1727797241390,0.99718743,62741.0,62740.0,0.164387]
[1727797241890,0.98118743,62741.0,62740.0,0.159387]
[1727797242128,0.98118743,62741.0,62740.0,0.163387]
[1727797242348,0.98218743,62741.0,62740.0,0.167387]
[1727797242596,0.98118743,62741.0,62740.0,0.163387]
[1727797242822,0.97252242,62741.0,62740.0,0.163387]
[1727797243071,1.07773498,62741.0,62740.0,0.163387]
[1727797243287,1.07771235,62741.0,62740.0,0.163387]
[1727797243538,0.97951141,62741.0,62740.0,0.004]
[1727797243781,0.97951141,62741.0,62736.0,0.001642]
[1727797243782,0.318776,62740.0,62736.0,0.001642]
[1727797244031,1.31082655,62741.0,62737.0,0.23945404]
[1727797244275,1.31082655,62741.0,62739.0,0.15939]
[1727797244276,0.00698616,62740.0,62739.0,0.15939]
[1727797244509,0.97252242,62741.0,62740.0,0.159387]
[1727797244773,0.97952242,62741.0,62740.0,0.159387]
[1727797244983,0.97952242,62741.0,62740.0,0.160387]
[1727797244984,0.98352242,62741.0,62740.0,0.160387]
[1727797245431,0.98452242,62741.0,62740.0,0.159387]
[1727797245652,0.97252242,62741.0,62740.0,0.159387]
[1727797245867,0.99750355,62741.0,62740.0,0.159387]
[1727797246100,0.99750355,62741.0,62739.0,0.15939]
[1727797246349,0.99750355,62741.0,62740.0,0.159387]
[1727797247022,1.00350355,62741.0,62740.0,0.159387]
[1727797247491,1.01250355,62741.0,62740.0,0.160387]
[1727797248200,1.00350355,62741.0,62740.0,0.159387]
[1727797248641,1.00650355,62741.0,62740.0,0.159387]
[1727797248866,1.08195498,62741.0,62736.0,0.001642]
[1727797249099,0.56439913,62737.0,62736.0,0.001642]
[1727797249394,0.72085693,62737.0,62736.0,0.001642]
[1727797249611,0.91475693,62737.0,62736.0,0.001642]
[1727797250322,0.2716,62737.0,62736.0,0.001642]
[1727797250558,0.2716,62737.0,62736.0,0.16104]
[1727797250787,0.2716,62737.0,62736.0,0.16204]
[1727797251225,0.2856,62737.0,62736.0,0.16104]
[1727797251486,0.2856,62737.0,62736.0,0.001642]
[1727797251723,0.2796,62737.0,62736.0,0.16204]
[1727797251947,0.37280678,62737.0,62736.0,0.16204]
[1727797252180,0.31558366,62737.0,62736.0,0.002642]
[1727797252418,0.31558366,62737.0,62736.0,0.16204]
[1727797252645,0.31558366,62737.0,62736.0,0.002642]
[1727797252896,0.31558366,62737.0,62736.0,0.16204]
[1727797253357,0.78788324,62737.0,62736.0,0.002642]
[1727797253609,0.47497866,62737.0,62736.0,0.002642]
[1727797253827,0.2906,62737.0,62736.0,0.002642]
[1727797254087,0.449995,62737.0,62736.0,0.002642]
[1727797255657,0.6064528,62737.0,62736.0,0.002642]
[1727797256809,0.63143787,62737.0,62736.0,0.002642]
[1727797257306,0.63143787,62737.0,62732.0,0.001644]
[1727797257307,0.159405,62733.0,62732.0,0.001644]
[1727797257523,0.64316693,62733.0,62732.0,0.001644]
[1727797258643,0.67116693,62733.0,62732.0,0.002644]
[1727797259293,0.67116693,62733.0,62732.0,0.001644]
[1727797259545,0.82761371,62733.0,62732.0,0.001644]
[1727797259787,0.84061371,62733.0,62732.0,0.002644]
[1727797260256,0.68416693,62733.0,62732.0,0.002644]
[1727797260491,0.65616693,62733.0,62732.0,0.002644]
[1727797260722,0.67016693,62733.0,62732.0,0.002644]
[1727797261172,0.67016693,62733.0,62719.0,0.001642]
[1727797261173,0.159438,62720.0,62719.0,0.001642]
[1727797261392,0.48674213,62720.0,62719.0,0.001642]
[1727797261652,0.72069993,62720.0,62719.0,0.001642]
[1727797262162,0.94573065,62720.0,62719.0,0.001642]
[1727797262393,0.97373065,62720.0,62719.0,0.001642]
[1727797262622,0.98973065,62720.0,62719.0,0.001642]
[1727797262868,0.159461,62711.0,62710.0,0.23945404]
[1727797263106,0.64322293,62711.0,62710.0,0.23945404]
[1727797263353,0.64322293,62711.0,62707.0,0.001642]
[1727797263354,0.342469,62708.0,62707.0,0.001642]
[1727797263603,0.342469,62708.0,62700.0,0.09515132]
[1727797263604,0.159484,62702.0,62701.0,0.04757566]
[1727797263852,0.3389418,62702.0,62701.0,0.23945404]
[1727797264070,0.318936,62709.0,62701.0,0.23945404]
[1727797264292,0.31895,62706.0,62702.0,0.04757566]
[1727797264522,0.31895,62706.0,62701.0,0.07136349]
[1727797264523,0.1564578,62705.0,62699.0,0.36655866]
[1727797264795,0.3159358,62705.0,62699.0,0.04757566]
[1727797265030,0.014,62702.0,62701.0,0.159487]
[1727797265240,0.1564578,62705.0,62704.0,0.159479]
[1727797265487,0.2711965,62705.0,62703.0,0.15948]
[1727797265711,0.1564578,62705.0,62704.0,0.159479]
[1727797265923,0.1564578,62705.0,62701.0,0.318971]
[1727797265924,0.012,62702.0,62701.0,0.478458]
[1727797266870,0.012,62702.0,62698.0,0.04757566]
[1727797266871,0.159492,62699.0,62698.0,0.04757566]
[1727797267087,0.159492,62699.0,62696.0,0.07136349]
[1727797267088,0.22115018,62699.0,62696.0,0.04757566]
[1727797267361,0.017,62706.0,62697.0,0.159497]
[1727797267362,0.1564578,62698.0,62697.0,0.159497]
[1727797267590,0.1564578,62698.0,62695.0,0.318999]
[1727797267823,0.1564578,62698.0,62695.0,0.20712824]
[1727797268041,0.06599162,62697.0,62694.0,0.04762724]
[1727797268264,0.06599162,62697.0,62694.0,0.20713024]
[1727797268700,0.06599162,62697.0,62694.0,0.04762724]
[1727797268934,0.56675817,62695.0,62694.0,0.04762724]
[1727797269149,0.56675817,62695.0,62690.0,0.04762724]
[1727797269150,0.319015,62693.0,62690.0,0.04762724]
[1727797269396,0.1564578,62692.0,62689.0,0.047624]
[1727797269621,0.48881913,62690.0,62689.0,0.047624]
[1727797269859,0.159517,62689.0,62688.0,0.047624]
[1727797270077,0.15952,62688.0,62687.0,0.047624]
[1727797270299,0.29696096,62688.0,62685.0,0.047624]
[1727797270530,0.29696096,62688.0,62686.0,0.047624]
[1727797270531,0.3159798,62687.0,62686.0,0.047624]
[1727797270764,0.3159798,62687.0,62686.0,0.29671105]
[1727797271245,0.3159798,62687.0,62686.0,0.22527019]
[1727797271469,0.47242658,62687.0,62686.0,0.22527019]
[1727797271904,0.51643081,62687.0,62686.0,0.22527019]
[1727797272137,0.52543081,62687.0,62686.0,0.14279097]
[1727797272389,0.52543081,62687.0,62686.0,0.36440166]
[1727797272613,0.51343081,62687.0,62686.0,0.36440166]
[1727797272858,0.51343081,62687.0,62686.0,0.22147104]
[1727797272859,0.67095781,62687.0,62686.0,0.22147104]
[1727797273105,0.80747558,62687.0,62686.0,0.14276834]
[1727797273342,0.80547558,62687.0,62686.0,0.14276834]
[1727797273596,0.1809,62695.0,62686.0,0.14276834]
[1727797273847,0.0811,62703.0,62692.0,0.14273286]
[1727797274087,0.1929,62707.0,62704.0,0.159479]
[1727797274088,0.39591184,62705.0,62704.0,0.159479]
[1727797274321,0.43914724,62705.0,62704.0,0.07134677]
[1727797274538,0.43914724,62705.0,62704.0,0.0475682]
[1727797274757,0.3591692,62705.0,62704.0,0.0475682]
[1727797275009,0.3591692,62705.0,62704.0,0.04756966]
[1727797275229,0.15948,62704.0,62702.0,0.04756966]
[1727797275447,0.1996932,62705.0,62701.0,0.36654366]
[1727797275448,0.1564578,62703.0,62701.0,0.36654366]
[1727797275674,0.0432354,62705.0,62704.0,0.159479]
[1727797275675,0.014,62705.0,62704.0,0.159479]
[1727797275912,0.014,62705.0,62704.0,0.29124524]
[1727797276135,0.3209338,62705.0,62704.0,0.07134687]
[1727797276350,0.3209338,62705.0,62703.0,0.22003353]
[1727797276351,0.15948,62704.0,62703.0,0.0475674]
[1727797276567,0.1564578,62704.0,62699.0,0.3665494]
[1727797276807,0.1564578,62703.0,62701.0,0.159485]
[1727797277060,0.1564578,62703.0,62694.0,0.07135111]
[1727797277061,0.32730413,62702.0,62694.0,0.0475674]
[1727797277288,0.159493,62699.0,62694.0,0.159504]
[1727797277510,0.1564578,62699.0,62694.0,0.319009]
[1727797277732,0.1564578,62699.0,62695.0,0.159499]
[1727797277960,0.15949,62700.0,62695.0,0.0475674]
[1727797277961,0.22328249,62698.0,62695.0,0.0475674]
[1727797278179,0.22328249,62698.0,62693.0,0.07135111]
[1727797278180,0.32730413,62697.0,62696.0,0.04756659]
[1727797278425,0.1564578,62697.0,62694.0,0.0475694]
[1727797278662,0.07258695,62696.0,62694.0,0.0475694]
[1727797278934,0.1564578,62695.0,62693.0,0.0475694]
[1727797279160,0.31901,62694.0,62691.0,0.0475694]
[1727797279374,0.2328578,62695.0,62690.0,0.04759159]
[1727797279375,0.319025,62691.0,62690.0,0.04759159]
[1727797279629,0.31903,62690.0,62688.0,0.04759159]
[1727797279866,0.6350098,62689.0,62687.0,0.04759647]
[1727797280127,0.48682413,62688.0,62687.0,0.04759647]
[1727797280352,0.64328193,62688.0,62687.0,0.04759647]
[1727797280590,0.355322,62687.0,62686.0,0.04924419]
[1727797280814,0.47825743,62687.0,62686.0,0.24109804]
[1727797281034,0.1564578,62687.0,62686.0,0.161169]
[1727797281471,0.004,62697.0,62686.0,0.04924419]
[1727797281713,0.23945404,62693.0,62692.0,0.159509]
[1727797281930,0.013,62694.0,62693.0,0.159507]
[1727797282154,0.03999118,62696.0,62695.0,0.1595]
[1727797282402,0.03999118,62696.0,62694.0,0.159504]
[1727797282671,0.03999118,62696.0,62692.0,0.319019]